[Event "*** Titled Tuesday Blitz"]
[Site "Chess.com"]
[Date "2020.03.03"]
[Round "5"]
[White "GM_dmitrij"]
[Black "AntonSmirnov"]
[Result "0-1"]
[WhiteElo "2828"]
[BlackElo "2941"]
[TimeControl "180+1"]
[EndTime "13:52:43 PST"]
[Termination "AntonSmirnov won on time"]

1. e4 {[%clk 0:03:00.9]} 1... e6 {[%clk 0:02:58.7]} 2. d4 {[%clk 0:03:00.4]}
2... d5 {[%clk 0:02:59]} 3. Nd2 {[%clk 0:03:01.1]} 3... dxe4 {[%clk 0:02:59]} 4.
Nxe4 {[%clk 0:03:02]} 4... Nd7 {[%clk 0:02:58.6]} 5. Nf3 {[%clk 0:03:00.4]} 5...
Ngf6 {[%clk 0:02:58.5]} 6. Nxf6+ {[%clk 0:03:00.9]} 6... Nxf6 {[%clk 0:02:58.3]}
7. g3 {[%clk 0:03:01.8]} 7... b6 {[%clk 0:02:55.3]} 8. Bb5+ {[%clk 0:03:02.1]}
8... Bd7 {[%clk 0:02:55.4]} 9. a4 {[%clk 0:03:02.7]} 9... a6 {[%clk 0:02:55.7]}
10. Be2 {[%clk 0:03:03.1]} 10... Bc6 {[%clk 0:02:55.5]} 11. O-O {[%clk
0:03:03.6]} 11... Be7 {[%clk 0:02:55.4]} 12. Ne5 {[%clk 0:03:01.8]} 12... Bb7
{[%clk 0:02:55.6]} 13. a5 {[%clk 0:02:36.5]} 13... b5 {[%clk 0:02:49.8]} 14. c4
{[%clk 0:02:36.4]} 14... bxc4 {[%clk 0:02:49.8]} 15. Qa4+ {[%clk 0:02:36.2]}
15... Kf8 {[%clk 0:02:38.2]} 16. Be3 {[%clk 0:02:35.8]} 16... h5 {[%clk
0:02:30]} 17. h4 {[%clk 0:02:30.3]} 17... Ng4 {[%clk 0:02:10.3]} 18. Bxc4 {[%clk
0:02:06.7]} 18... Bd6 {[%clk 0:01:29.4]} 19. Rad1 {[%clk 0:01:58.1]} 19... Kg8
{[%clk 0:01:16.6]} 20. Qb3 {[%clk 0:01:48.8]} 20... Qc8 {[%clk 0:01:14]} 21. Bf4
{[%clk 0:01:17.9]} 21... Rb8 {[%clk 0:01:00.7]} 22. Qc3 {[%clk 0:01:18]} 22...
Ba8 {[%clk 0:00:58]} 23. f3 {[%clk 0:00:51.9]} 23... Nf6 {[%clk 0:00:56.5]} 24.
Bc1 {[%clk 0:00:39.6]} 24... Nd5 {[%clk 0:00:55.1]} 25. Qd3 {[%clk 0:00:39.9]}
25... Nb4 {[%clk 0:00:55.1]} 26. Qe2 {[%clk 0:00:39.8]} 26... c5 {[%clk
0:00:48.8]} 27. Rfe1 {[%clk 0:00:39]} 27... Bd5 {[%clk 0:00:46]} 28. Bxd5 {[%clk
0:00:34.6]} 28... Nxd5 {[%clk 0:00:45.3]} 29. dxc5 {[%clk 0:00:26.5]} 29...
Qxc5+ {[%clk 0:00:44.4]} 30. Kg2 {[%clk 0:00:26.7]} 30... Bxe5 {[%clk
0:00:41.9]} 31. Qxe5 {[%clk 0:00:27]} 31... Rc8 {[%clk 0:00:41.5]} 32. Bd2
{[%clk 0:00:23.4]} 32... Qb5 {[%clk 0:00:34.8]} 33. Rc1 {[%clk 0:00:19.3]} 33...
Re8 {[%clk 0:00:34.3]} 34. b4 {[%clk 0:00:17.2]} 34... f6 {[%clk 0:00:24.3]} 35.
Qe4 {[%clk 0:00:16.4]} 35... Kf7 {[%clk 0:00:20.2]} 36. Rc5 {[%clk 0:00:16.8]}
36... Qd7 {[%clk 0:00:19.9]} 37. b5 {[%clk 0:00:16.1]} 37... axb5 {[%clk
0:00:19.5]} 38. a6 {[%clk 0:00:17]} 38... Ra8 {[%clk 0:00:18.9]} 39. Ra1 {[%clk
0:00:14.5]} 39... Rhc8 {[%clk 0:00:18.5]} 40. Qd4 {[%clk 0:00:10.2]} 40... Rxc5
{[%clk 0:00:16.4]} 41. Qxc5 {[%clk 0:00:11.1]} 41... Nc7 {[%clk 0:00:16.8]} 42.
Ba5 {[%clk 0:00:04.1]} 42... Rxa6 {[%clk 0:00:15.1]} 43. Ra2 {[%clk 0:00:02.3]}
43... Nd5 {[%clk 0:00:14.5]} 0-1

[Event "*** Titled Tuesday Blitz"]
[Site "Chess.com"]
[Date "2020.03.03"]
[Round "5"]
[White "Sven_Tica"]
[Black "Jospem"]
[Result "0-1"]
[WhiteElo "2660"]
[BlackElo "2920"]
[TimeControl "180+1"]
[EndTime "13:52:44 PST"]
[Termination "Jospem won by resignation"]

1. d4 {[%clk 0:03:00.9]} 1... Nf6 {[%clk 0:02:59.8]} 2. Nf3 {[%clk 0:03:00]}
2... e6 {[%clk 0:03:00]} 3. c4 {[%clk 0:03:00.1]} 3... Bb4+ {[%clk 0:03:00]} 4.
Bd2 {[%clk 0:03:00.2]} 4... c5 {[%clk 0:02:59.7]} 5. Bxb4 {[%clk 0:02:58]} 5...
cxb4 {[%clk 0:03:00.6]} 6. e3 {[%clk 0:02:57.9]} 6... O-O {[%clk 0:03:00.8]} 7.
Bd3 {[%clk 0:02:57]} 7... a5 {[%clk 0:03:01.1]} 8. O-O {[%clk 0:02:57.4]} 8...
d6 {[%clk 0:03:01.6]} 9. a3 {[%clk 0:02:57.9]} 9... Na6 {[%clk 0:02:59.4]} 10.
Be2 {[%clk 0:02:45.5]} 10... Qc7 {[%clk 0:02:56.9]} 11. axb4 {[%clk 0:02:44.4]}
11... Nxb4 {[%clk 0:02:56.2]} 12. Na3 {[%clk 0:02:45]} 12... Bd7 {[%clk
0:02:55.8]} 13. Qb3 {[%clk 0:02:32.9]} 13... Rfc8 {[%clk 0:02:51.3]} 14. Rfc1
{[%clk 0:02:32]} 14... b6 {[%clk 0:02:48.3]} 15. Qd1 {[%clk 0:02:24.7]} 15... h6
{[%clk 0:02:46.7]} 16. Qe1 {[%clk 0:02:18.9]} 16... Qb7 {[%clk 0:02:41.9]} 17.
Nd2 {[%clk 0:02:17.7]} 17... Bc6 {[%clk 0:02:41.1]} 18. f3 {[%clk 0:02:17.9]}
18... d5 {[%clk 0:02:39]} 19. Qd1 {[%clk 0:02:09.9]} 19... Qe7 {[%clk
0:02:36.1]} 20. Qb3 {[%clk 0:02:09.5]} 20... e5 {[%clk 0:02:32]} 21. dxe5 {[%clk
0:01:59.9]} 21... Qxe5 {[%clk 0:02:32.9]} 22. f4 {[%clk 0:02:00.5]} 22... Qe7
{[%clk 0:02:31.2]} 23. Bf3 {[%clk 0:01:59.8]} 23... Re8 {[%clk 0:02:22.7]} 24.
Re1 {[%clk 0:01:58.3]} 24... Rad8 {[%clk 0:02:21.4]} 25. Rad1 {[%clk 0:01:51.2]}
25... dxc4 {[%clk 0:02:08.3]} 26. Ndxc4 {[%clk 0:01:44.1]} 26... Bxf3 {[%clk
0:02:06]} 27. gxf3 {[%clk 0:01:45]} 27... Qe6 {[%clk 0:01:59]} 28. Qc3 {[%clk
0:01:39.9]} 28... Qh3 {[%clk 0:01:56.2]} 29. Ne5 {[%clk 0:01:38.1]} 29... Rxd1
{[%clk 0:01:51.6]} 30. Rxd1 {[%clk 0:01:39]} 30... Nfd5 {[%clk 0:01:51.5]} 31.
Qb3 {[%clk 0:01:22.8]} 31... Rxe5 {[%clk 0:01:42.1]} 32. fxe5 {[%clk 0:01:13]}
32... Qxf3 {[%clk 0:01:41.1]} 33. Nc4 {[%clk 0:01:10.7]} 33... a4 {[%clk
0:01:11.6]} 34. Qxa4 {[%clk 0:01:03.7]} 34... b5 {[%clk 0:01:00.9]} 35. Qa8+
{[%clk 0:00:50.4]} 35... Kh7 {[%clk 0:00:59.9]} 36. Rxd5 {[%clk 0:00:45.5]}
36... Nxd5 {[%clk 0:00:54.9]} 37. Nd6 {[%clk 0:00:46.2]} 37... Qd1+ {[%clk
0:00:49.9]} 38. Kf2 {[%clk 0:00:45.2]} 38... Qd2+ {[%clk 0:00:49.5]} 39. Kg1
{[%clk 0:00:41.9]} 39... Qxe3+ {[%clk 0:00:47.9]} 40. Kf1 {[%clk 0:00:42.3]}
40... Qf4+ {[%clk 0:00:44.1]} 41. Kg1 {[%clk 0:00:42.3]} 41... Qc1+ {[%clk
0:00:41.4]} 42. Kf2 {[%clk 0:00:41.7]} 42... Qxb2+ {[%clk 0:00:41.4]} 43. Kf1
{[%clk 0:00:42.3]} 43... Ne3+ {[%clk 0:00:38.5]} 44. Ke1 {[%clk 0:00:42.2]}
44... Nc2+ {[%clk 0:00:26.4]} 45. Kd1 {[%clk 0:00:39.5]} 45... Ne3+ {[%clk
0:00:23.3]} 46. Ke1 {[%clk 0:00:39.7]} 46... Qxe5 {[%clk 0:00:19.6]} 47. Qh8+
{[%clk 0:00:39.2]} 47... Kxh8 {[%clk 0:00:19.1]} 48. Nxf7+ {[%clk 0:00:39.4]}
48... Kg8 {[%clk 0:00:18.8]} 49. Nxe5 {[%clk 0:00:40.3]} 49... Nc4 {[%clk
0:00:18.7]} 50. Nc6 {[%clk 0:00:39.7]} 50... Kf7 {[%clk 0:00:18.4]} 51. Ke2
{[%clk 0:00:39.7]} 51... Nd6 {[%clk 0:00:17.6]} 52. Ke3 {[%clk 0:00:38.7]} 52...
Kf6 {[%clk 0:00:18.2]} 53. Kf4 {[%clk 0:00:37.6]} 53... Nf5 {[%clk 0:00:14.6]}
54. Kg4 {[%clk 0:00:35.2]} 54... g6 {[%clk 0:00:12.8]} 55. h4 {[%clk 0:00:35.1]}
55... h5+ {[%clk 0:00:12.1]} 56. Kh3 {[%clk 0:00:35.6]} 56... Ke6 {[%clk
0:00:12.2]} 57. Nb4 {[%clk 0:00:35.1]} 57... Kd6 {[%clk 0:00:12.3]} 58. Nd3
{[%clk 0:00:36]} 58... Kd5 {[%clk 0:00:12.1]} 59. Nf4+ {[%clk 0:00:36.9]} 59...
Ke4 {[%clk 0:00:12.5]} 60. Nxg6 {[%clk 0:00:37.8]} 60... b4 {[%clk 0:00:13.1]}
61. Nf8 {[%clk 0:00:36.4]} 61... b3 {[%clk 0:00:13.6]} 62. Ne6 {[%clk
0:00:37.3]} 62... b2 {[%clk 0:00:13.6]} 63. Nc5+ {[%clk 0:00:38.2]} 63... Ke3
{[%clk 0:00:14]} 0-1

[Event "*** Titled Tuesday Blitz"]
[Site "Chess.com"]
[Date "2020.03.03"]
[Round "5"]
[White "FearNoEvil12"]
[Black "ChessBitl"]
[Result "1-0"]
[WhiteElo "2015"]
[BlackElo "2304"]
[TimeControl "180+1"]
[EndTime "13:52:46 PST"]
[Termination "FearNoEvil12 won on time"]

1. e4 {[%clk 0:03:00.9]} 1... c5 {[%clk 0:02:58.9]} 2. Nc3 {[%clk 0:02:59.6]}
2... Nc6 {[%clk 0:02:59.1]} 3. f4 {[%clk 0:02:59.9]} 3... g6 {[%clk 0:02:59.3]}
4. Nf3 {[%clk 0:03:00.3]} 4... Bg7 {[%clk 0:02:59.9]} 5. Bc4 {[%clk 0:03:00.7]}
5... e6 {[%clk 0:03:00.1]} 6. f5 {[%clk 0:03:01.2]} 6... Nge7 {[%clk 0:02:56.9]}
7. fxg6 {[%clk 0:03:00.3]} 7... hxg6 {[%clk 0:02:56.2]} 8. d3 {[%clk 0:03:00.8]}
8... a6 {[%clk 0:02:49.7]} 9. a4 {[%clk 0:02:59.6]} 9... d5 {[%clk 0:02:46.7]}
10. Bb3 {[%clk 0:02:58.6]} 10... b6 {[%clk 0:02:38.7]} 11. O-O {[%clk
0:02:57.1]} 11... f5 {[%clk 0:02:34.1]} 12. Bg5 {[%clk 0:02:50.8]} 12... Qc7
{[%clk 0:02:31.2]} 13. g3 {[%clk 0:02:47.3]} 13... fxe4 {[%clk 0:02:26]} 14.
dxe4 {[%clk 0:02:45.9]} 14... d4 {[%clk 0:02:26.6]} 15. Ne2 {[%clk 0:02:42.6]}
15... Ne5 {[%clk 0:02:07]} 16. Bf4 {[%clk 0:02:39.9]} 16... Nxf3+ {[%clk
0:02:05.1]} 17. Rxf3 {[%clk 0:02:38.5]} 17... e5 {[%clk 0:02:04.9]} 18. Bg5
{[%clk 0:02:36]} 18... c4 {[%clk 0:02:04.9]} 19. Bxe7 {[%clk 0:02:19.9]} 19...
Kxe7 {[%clk 0:02:00.6]} 20. Qf1 {[%clk 0:02:17]} 20... Ke8 {[%clk 0:01:49.9]}
21. Nxd4 {[%clk 0:02:08.8]} 21... exd4 {[%clk 0:01:40.4]} 22. Bxc4 {[%clk
0:02:01.2]} 22... Rf8 {[%clk 0:01:36]} 23. Rxf8+ {[%clk 0:01:56.8]} 23... Bxf8
{[%clk 0:01:35.3]} 24. Bd5 {[%clk 0:01:53.7]} 24... Bb7 {[%clk 0:01:33.2]} 25.
Qf6 {[%clk 0:01:51.3]} 25... d3 {[%clk 0:00:27.1]} 26. Qxg6+ {[%clk 0:01:43.6]}
26... Kd8 {[%clk 0:00:25.2]} 27. cxd3 {[%clk 0:01:31.7]} 27... Kc8 {[%clk
0:00:20.5]} 28. Qg8 {[%clk 0:01:20.6]} 28... Qc5+ {[%clk 0:00:17.7]} 29. Kh1
{[%clk 0:01:18.4]} 29... Kb8 {[%clk 0:00:17.6]} 30. Rf1 {[%clk 0:01:10.3]} 30...
Ka7 {[%clk 0:00:16.2]} 31. Qh7 {[%clk 0:01:03.7]} 31... Be7 {[%clk 0:00:12.2]}
32. Rf7 {[%clk 0:01:03.2]} 32... Re8 {[%clk 0:00:09.1]} 33. Bxb7 {[%clk
0:00:55.8]} 33... Kxb7 {[%clk 0:00:09]} 34. d4 {[%clk 0:00:54.5]} 34... Qd6
{[%clk 0:00:05.8]} 35. Kg2 {[%clk 0:00:37.9]} 35... Kb8 {[%clk 0:00:05.6]} 36.
d5 {[%clk 0:00:35]} 36... Qe5 {[%clk 0:00:05]} 37. h4 {[%clk 0:00:30.1]} 37...
Qxb2+ {[%clk 0:00:04.8]} 38. Kh3 {[%clk 0:00:28.9]} 38... Qe5 {[%clk 0:00:05.3]}
39. h5 {[%clk 0:00:26.6]} 39... b5 {[%clk 0:00:05.2]} 40. axb5 {[%clk
0:00:24.8]} 40... axb5 {[%clk 0:00:05.8]} 41. Qg6 {[%clk 0:00:23.1]} 41... Qd6
{[%clk 0:00:04.8]} 42. g4 {[%clk 0:00:13.5]} 42... Qxg6 {[%clk 0:00:04]} 43.
hxg6 {[%clk 0:00:12.8]} 43... Bg5 {[%clk 0:00:03.2]} 44. g7 {[%clk 0:00:12]}
44... Be7 {[%clk 0:00:02.4]} 45. e5 {[%clk 0:00:11.4]} 45... b4 {[%clk
0:00:01.8]} 46. d6 {[%clk 0:00:11.3]} 46... b3 {[%clk 0:00:01.3]} 47. dxe7
{[%clk 0:00:09.7]} 47... b2 {[%clk 0:00:01.2]} 48. Rf8 {[%clk 0:00:10.3]} 1-0

[Event "*** Titled Tuesday Blitz"]
[Site "Chess.com"]
[Date "2020.03.03"]
[Round "5"]
[White "amiralfio"]
[Black "Danfii"]
[Result "1-0"]
[WhiteElo "2610"]
[BlackElo "2417"]
[TimeControl "180+1"]
[EndTime "13:52:55 PST"]
[Termination "amiralfio won by resignation"]

1. Nf3 {[%clk 0:03:00.9]} 1... d5 {[%clk 0:02:59.9]} 2. c4 {[%clk 0:02:57.8]}
2... d4 {[%clk 0:03:00.1]} 3. b4 {[%clk 0:02:57]} 3... g5 {[%clk 0:03:00]} 4.
Bb2 {[%clk 0:02:38.5]} 4... Bg7 {[%clk 0:02:59.6]} 5. Nxg5 {[%clk 0:02:37.3]}
5... e5 {[%clk 0:02:59.2]} 6. Ne4 {[%clk 0:02:37.8]} 6... f5 {[%clk 0:02:52.5]}
7. Nc5 {[%clk 0:02:37.9]} 7... b6 {[%clk 0:02:30.9]} 8. Nd3 {[%clk 0:02:14.1]}
8... Bb7 {[%clk 0:02:23.5]} 9. e3 {[%clk 0:02:12.8]} 9... Ne7 {[%clk 0:01:53.9]}
10. Qh5+ {[%clk 0:02:10.1]} 10... Kf8 {[%clk 0:01:44.8]} 11. Be2 {[%clk
0:01:43.1]} 11... Nd7 {[%clk 0:01:39.1]} 12. exd4 {[%clk 0:01:39.8]} 12... Nf6
{[%clk 0:01:39]} 13. Qh4 {[%clk 0:01:30.8]} 13... exd4 {[%clk 0:01:12.3]} 14.
Qxd4 {[%clk 0:01:09.7]} 14... Qxd4 {[%clk 0:01:03.2]} 15. Bxd4 {[%clk
0:01:10.6]} 15... Rd8 {[%clk 0:01:03.8]} 16. Nf4 {[%clk 0:01:05.8]} 16... Kf7
{[%clk 0:00:57.2]} 17. Bc3 {[%clk 0:00:56.2]} 17... Ng6 {[%clk 0:00:53.6]} 18.
Nxg6 {[%clk 0:00:45.5]} 18... hxg6 {[%clk 0:00:54.5]} 19. f3 {[%clk 0:00:46.1]}
19... Rhe8 {[%clk 0:00:53.7]} 20. Kf2 {[%clk 0:00:42.3]} 20... Bh6 {[%clk
0:00:45.3]} 21. a4 {[%clk 0:00:28.1]} 21... Re7 {[%clk 0:00:38.3]} 22. a5 {[%clk
0:00:26.5]} 22... Rde8 {[%clk 0:00:38.5]} 23. Bd3 {[%clk 0:00:23.2]} 23... Nh5
{[%clk 0:00:34.9]} 24. g3 {[%clk 0:00:18.6]} 24... Rd7 {[%clk 0:00:34]} 25. Bc2
{[%clk 0:00:16.9]} 25... Nf6 {[%clk 0:00:33]} 26. axb6 {[%clk 0:00:16]} 26...
axb6 {[%clk 0:00:31.8]} 27. Ra7 {[%clk 0:00:15.7]} 27... Ng4+ {[%clk 0:00:28.9]}
28. fxg4 {[%clk 0:00:09]} 28... Bxh1 {[%clk 0:00:28.2]} 29. gxf5 {[%clk
0:00:09.6]} 29... gxf5 {[%clk 0:00:27.4]} 30. Bxf5 {[%clk 0:00:10.5]} 30... Rde7
{[%clk 0:00:27.6]} 31. Bg4 {[%clk 0:00:08.3]} 31... Be4 {[%clk 0:00:26.6]} 32.
Na3 {[%clk 0:00:06.6]} 32... Bd3 {[%clk 0:00:27.2]} 33. Nb5 {[%clk 0:00:05.6]}
33... Bxc4 {[%clk 0:00:26.3]} 34. Bh5+ {[%clk 0:00:05.2]} 34... Kf8 {[%clk
0:00:24.7]} 35. Bxe8 {[%clk 0:00:04.7]} 35... Rxe8 {[%clk 0:00:23.3]} 36. Nxc7
{[%clk 0:00:03.6]} 36... Re2+ {[%clk 0:00:23.8]} 37. Kf3 {[%clk 0:00:03.3]}
37... Bxd2 {[%clk 0:00:23.8]} 38. Bxd2 {[%clk 0:00:02.8]} 38... Rxd2 {[%clk
0:00:24.7]} 39. Rb7 {[%clk 0:00:03.1]} 39... Rd7 {[%clk 0:00:22.6]} 40. Rb8+
{[%clk 0:00:02.5]} 40... Ke7 {[%clk 0:00:22.1]} 41. Na8 {[%clk 0:00:03.4]} 41...
Bd5+ {[%clk 0:00:21.3]} 42. Kf4 {[%clk 0:00:03.1]} 42... b5 {[%clk 0:00:18.9]}
43. Nb6 {[%clk 0:00:03.1]} 43... Be6 {[%clk 0:00:18.3]} 44. Nxd7 {[%clk
0:00:03]} 44... Bxd7 {[%clk 0:00:19.2]} 45. Ke5 {[%clk 0:00:03.4]} 45... Bc6
{[%clk 0:00:19.1]} 46. Rb6 {[%clk 0:00:03.5]} 46... Bd7 {[%clk 0:00:20]} 47. Rb7
{[%clk 0:00:03.4]} 47... Kd8 {[%clk 0:00:20.9]} 48. Rxd7+ {[%clk 0:00:04.3]}
48... Kxd7 {[%clk 0:00:21.2]} 49. h4 {[%clk 0:00:05.1]} 49... Kc6 {[%clk
0:00:22.1]} 50. h5 {[%clk 0:00:06]} 50... Kd7 {[%clk 0:00:22.6]} 51. h6 {[%clk
0:00:06.7]} 51... Ke7 {[%clk 0:00:23.5]} 52. h7 {[%clk 0:00:07.6]} 52... Kf7
{[%clk 0:00:24.4]} 53. Kd5 {[%clk 0:00:08.5]} 53... Kg7 {[%clk 0:00:25.3]} 54.
Kc5 {[%clk 0:00:09.4]} 54... Kh8 {[%clk 0:00:26.2]} 55. Kxb5 {[%clk 0:00:10.3]}
55... Kxh7 {[%clk 0:00:27.1]} 56. Kc6 {[%clk 0:00:11.2]} 56... Kg6 {[%clk
0:00:28]} 57. b5 {[%clk 0:00:12.1]} 57... Kg5 {[%clk 0:00:28.9]} 58. b6 {[%clk
0:00:13]} 58... Kg4 {[%clk 0:00:29.8]} 59. b7 {[%clk 0:00:13.9]} 59... Kxg3
{[%clk 0:00:30.7]} 60. b8=Q+ {[%clk 0:00:14.8]} 60... Kf3 {[%clk 0:00:30.7]} 61.
Qe5 {[%clk 0:00:13.8]} 61... Kf2 {[%clk 0:00:31.6]} 62. Qe4 {[%clk 0:00:13.6]}
1-0

[Event "*** Titled Tuesday Blitz"]
[Site "Chess.com"]
[Date "2020.03.03"]
[Round "5"]
[White "almaguerjm"]
[Black "stoleriu"]
[Result "0-1"]
[WhiteElo "2312"]
[BlackElo "2482"]
[TimeControl "180+1"]
[EndTime "13:52:56 PST"]
[Termination "stoleriu won by resignation"]

1. d4 {[%clk 0:03:00.9]} 1... e6 {[%clk 0:02:57.7]} 2. e4 {[%clk 0:02:57.5]}
2... d5 {[%clk 0:02:57.3]} 3. Nd2 {[%clk 0:02:57]} 3... Be7 {[%clk 0:02:57.2]}
4. Bd3 {[%clk 0:02:54.3]} 4... c5 {[%clk 0:02:55.5]} 5. c3 {[%clk 0:02:51.5]}
5... cxd4 {[%clk 0:02:53.5]} 6. cxd4 {[%clk 0:02:51.7]} 6... Nc6 {[%clk
0:02:54.4]} 7. Ngf3 {[%clk 0:02:51.4]} 7... dxe4 {[%clk 0:02:54.9]} 8. Nxe4
{[%clk 0:02:51.8]} 8... Nf6 {[%clk 0:02:55.4]} 9. O-O {[%clk 0:02:50.3]} 9...
O-O {[%clk 0:02:55.6]} 10. Be3 {[%clk 0:02:49]} 10... Bd7 {[%clk 0:02:55.1]} 11.
Rc1 {[%clk 0:02:47.8]} 11... Rc8 {[%clk 0:02:54.8]} 12. Bb1 {[%clk 0:02:46.9]}
12... Nxe4 {[%clk 0:02:52.7]} 13. Bxe4 {[%clk 0:02:46]} 13... Qb6 {[%clk
0:02:52]} 14. a3 {[%clk 0:02:35.5]} 14... Rfd8 {[%clk 0:02:31.2]} 15. d5 {[%clk
0:02:30.8]} 15... Qxb2 {[%clk 0:02:09]} 16. dxc6 {[%clk 0:02:27.7]} 16... Bxc6
{[%clk 0:02:09.9]} 17. Qc2 {[%clk 0:02:27.3]} 17... Qxc2 {[%clk 0:02:01.5]} 18.
Bxc2 {[%clk 0:02:25.6]} 18... Bxf3 {[%clk 0:01:46.8]} 19. gxf3 {[%clk
0:02:15.2]} 19... Bxa3 {[%clk 0:01:47]} 20. Bxa7 {[%clk 0:01:59.2]} 20... Bxc1
{[%clk 0:01:45.8]} 21. Rxc1 {[%clk 0:01:57.3]} 21... Rc6 {[%clk 0:01:29]} 22.
Be3 {[%clk 0:01:17.5]} 22... Rdc8 {[%clk 0:01:27.8]} 23. Rb1 {[%clk 0:01:17.4]}
23... Rxc2 {[%clk 0:01:26.2]} 24. Rxb7 {[%clk 0:01:17]} 24... R2c7 {[%clk
0:01:25.5]} 25. Rb5 {[%clk 0:01:16.1]} 25... f6 {[%clk 0:01:25.6]} 26. Kg2
{[%clk 0:01:16.4]} 26... Kf7 {[%clk 0:01:25.1]} 27. h4 {[%clk 0:01:16.4]} 27...
Rd7 {[%clk 0:01:21.8]} 28. Rb4 {[%clk 0:01:12.5]} 28... h5 {[%clk 0:01:20]} 29.
Kg3 {[%clk 0:01:12.8]} 29... Kg6 {[%clk 0:01:19.9]} 30. Kg2 {[%clk 0:01:13.2]}
30... Rc6 {[%clk 0:01:19.9]} 31. Kg3 {[%clk 0:01:13.6]} 31... Kf5 {[%clk
0:01:20.1]} 32. Kg2 {[%clk 0:01:13.8]} 32... e5 {[%clk 0:01:20.3]} 33. Kg3
{[%clk 0:01:13.6]} 33... g5 {[%clk 0:01:20.6]} 34. hxg5 {[%clk 0:01:13.6]} 34...
fxg5 {[%clk 0:01:21.5]} 35. Rb5 {[%clk 0:01:11.5]} 35... Rcd6 {[%clk 0:01:16.6]}
36. Ra5 {[%clk 0:01:06.3]} 36... Rd5 {[%clk 0:01:16.6]} 37. Ra8 {[%clk
0:01:06.2]} 37... Rg7 {[%clk 0:01:03.2]} 38. Rf8+ {[%clk 0:01:01.4]} 38... Ke6
{[%clk 0:01:03.2]} 39. Re8+ {[%clk 0:01:01.8]} 39... Kf7 {[%clk 0:01:00.8]} 40.
Rb8 {[%clk 0:00:59.5]} 40... Kg6 {[%clk 0:00:55.6]} 41. Rb6+ {[%clk 0:00:55.2]}
41... Kf5 {[%clk 0:00:55.4]} 42. Rb8 {[%clk 0:00:52.8]} 42... g4 {[%clk
0:00:55.6]} 43. Rf8+ {[%clk 0:00:50.3]} 43... Ke6 {[%clk 0:00:55.6]} 44. f4
{[%clk 0:00:50.3]} 44... exf4+ {[%clk 0:00:54.8]} 45. Rxf4 {[%clk 0:00:50.4]}
45... Rf5 {[%clk 0:00:48.2]} 46. Ra4 {[%clk 0:00:48.6]} 46... Rf3+ {[%clk
0:00:48.1]} 47. Kg2 {[%clk 0:00:47.2]} 47... h4 {[%clk 0:00:48.6]} 48. Ra6+
{[%clk 0:00:45.3]} 48... Kd5 {[%clk 0:00:44.5]} 49. Ra5+ {[%clk 0:00:45.4]}
49... Kc6 {[%clk 0:00:26.6]} 50. Ra6+ {[%clk 0:00:44]} 50... Kb5 {[%clk
0:00:26.5]} 51. Rb6+ {[%clk 0:00:43.4]} 51... Kc4 {[%clk 0:00:25.4]} 52. Rc6+
{[%clk 0:00:43.4]} 52... Kd5 {[%clk 0:00:24.3]} 53. Rc5+ {[%clk 0:00:43.7]}
53... Kd6 {[%clk 0:00:23.2]} 54. Rc4 {[%clk 0:00:41.6]} 54... h3+ {[%clk
0:00:23]} 55. Kf1 {[%clk 0:00:17.9]} 55... g3 {[%clk 0:00:22.4]} 56. Rh4 {[%clk
0:00:17.9]} 56... gxf2 {[%clk 0:00:14.4]} 57. Rh6+ {[%clk 0:00:15.1]} 57... Kd5
{[%clk 0:00:12.4]} 58. Rh5+ {[%clk 0:00:14.6]} 58... Ke4 {[%clk 0:00:12.4]} 59.
Bxf2 {[%clk 0:00:13.8]} 59... Rg2 {[%clk 0:00:11.8]} 60. Rh4+ {[%clk 0:00:13.6]}
60... Rf4 {[%clk 0:00:08.4]} 0-1